[Event "Superbet Blitz Poland 2022"]
[Site "Warsaw"]
[Date "2022.05.23"]
[Round "12.2"]
[White "Gavrilescu, David"]
[Black "Anand, Viswanathan"]
[Result "1/2-1/2"]
[ECO "C47"]
[WhiteElo "2518"]
[BlackElo "2751"]
[Annotator "TA"]
[PlyCount "97"]
[EventDate "2022.05.22"]
[EventType "tourn"]
[EventCountry "POL"]
[SourceTitle "playchess.com"]
[Source "ChessBase"]
[SourceQuality "1"]
[TimeControl "300+2"]

{[%evp 12,97,25,31,42,58,45,35,111,-8,-12,-2,-2,-4,0,-31,-22,-22,-21,-26,-31,-21,-35,-27,-37,-23,-27,-21,0,0,38,46,53,53,53,53,53,53,53,53,53,53,53,53,53,46,46,36,42,43,52,52,52,47,46,35,53,53,53,53,53,53,53,35,53,53,53,53,53,53,53,53,53,53,53,53,53,53,53,53,53,0,53,0,53,0,53,0]} 1. e4 {[%emt 0:00:02]} e5 {[%emt 0:00:00]} 2. Nf3 {[%emt 0:00:02]} Nc6 {[%emt 0:00:02]} 3. d4 {[%emt 0:00:02]} exd4 {[%emt 0:00:01]} 4. Nxd4 {[%emt 0:00:02]} Nf6 {[%emt 0:00:01]} 5. Nxc6 {[%emt 0:00:03]} bxc6 {[%emt 0:00:01]} 6. Bd3 {[%emt 0:00:02]} d6 {[%emt 0:00:02]} 7. Nc3 {[%emt 0:00:02]} g6 {[%emt 0:00:04] [#] C47: Scotch Four Knights and Four Knights with 4 g3.} 8. e5 $146 {[%emt 0:00:31]} ({Predecessor:} 8. Be3 Bg7 9. Qd2 O-O 10. Bh6 Bxh6 11. Qxh6 Ng4 12. Qd2 f5 13. f4 Qf6 14. O-O-O fxe4 15. Bxe4 Qxf4 16. Qxf4 Rxf4 17. Bxc6 {½-½ (68) Pacher,M (2435)-Berczes,D (2461) Budapest 2021}) 8... dxe5 {[%emt 0:00:02]} 9. Qf3 {[%emt 0:00:02]} Nd5 {[%emt 0:00:04]} (9... Bd7 $14) 10. Bc4 {[%emt 0:00:56]} (10. Nxd5 $16 {aiming for Nf6+.} cxd5 11. Bb5+ Bd7 12. Qxd5) 10... Be6 $11 {[%emt 0:00:09]} 11. O-O {[%emt 0:00:26]} Bg7 {[%emt 0:00:04]} 12. Rd1 {[%emt 0:00:03][%cal Rc3d5]} O-O {[%emt 0:00:14]} 13. Nxd5 {[%emt 0:00:02][%cal Od5b6] Hoping for Nb6!} e4 {[%emt 0:00:35]} 14. Qxe4 {[%emt 0:01:15]} cxd5 {[%emt 0:00:05]} 15. Bxd5 {[%emt 0:00:01]} c6 $1 {[%emt 0:00:01]} 16. Qxe6 {[%emt 0:00:03]} fxe6 {[%emt 0:00:02]} 17. Bxe6+ {[%emt 0:00:01][%cal Bd5e6,Be6g4,Bg4f3,Bf3c6][%mdl 96] [#] Discovered Attack. This bishop pair is nice.} Kh8 {[%emt 0:00:03][%cal Rd8d1]} 18. Rxd8 {[%emt 0:00:02]} Raxd8 {[%emt 0:00:01][%cal Rd8d1]} 19. Bg4 {[%emt 0:00:01] Against Rd1+} Rfe8 {[%emt 0:01:15][%cal Re8e1]} (19... Rd4 $5 {[%cal Rd4g4]} 20. h3 Re4 $15) 20. Kf1 {[%emt 0:00:01] Against Re1+} Rd4 {[%emt 0:00:02]} 21. Bf3 {[%emt 0:00:08]} Rc4 {[%emt 0:00:45]} 22. c3 {[%emt 0:00:09]} Rxc3 {[%emt 0:00:01]} 23. bxc3 {[%emt 0:00:08]} Bxc3 {[%emt 0:00:01][%csl Gc3][%cal Re8e1] [#]} 24. Bb2 $1 {[%emt 0:00:05]} Bxb2 $14 {[%emt 0:00:01][%mdl 4096] Endgame KRB-KRB} 25. Rb1 {[%emt 0:00:02]} Bd4 {[%emt 0:00:04]} 26. Bxc6 {[%emt 0:00:02]} Rc8 {[%emt 0:00:01]} 27. Be4 {[%emt 0:00:03]} Bb6 {[%emt 0:00:04]} 28. Ke2 {[%emt 0:00:06]} Rc4 {[%emt 0:00:02]} 29. Bd3 {[%emt 0:00:04]} Ra4 {[%emt 0:00:02]} 30. Rb2 {[%emt 0:00:01]} Kg7 {[%emt 0:00:00]} 31. g3 {[%emt 0:00:05]} g5 {[%emt 0:00:03]} 32. Rc2 {[%emt 0:00:01]} h5 {[%emt 0:00:05]} 33. h3 {[%emt 0:00:04]} h4 {[%emt 0:00:05]} 34. Bc4 {[%emt 0:00:01]} hxg3 {[%emt 0:00:06]} 35. fxg3 {[%emt 0:00:01]} Ra5 {[%emt 0:00:01]} 36. Kf3 {[%emt 0:00:03]} Rc5 {[%emt 0:00:00]} 37. Ke4 {[%emt 0:00:07]} Rc7 {[%emt 0:00:07]} 38. Kf5 {[%emt 0:00:24]} Rc5+ {[%emt 0:00:01]} 39. Kg4 {[%emt 0:00:01]} Bc7 {[%emt 0:00:02]} 40. Bb3 {[%emt 0:00:19]} Rxc2 {[%emt 0:00:01]} 41. Bxc2 {[%emt 0:00:01] KB-KB} Kf6 {[%emt 0:00:01]} 42. h4 {[%emt 0:00:01]} gxh4 {[%emt 0:00:01]} 43. gxh4 {[%emt 0:00:02]} Ba5 {[%emt 0:00:02]} 44. h5 {[%emt 0:00:03]} Bd2 {[%emt 0:00:01]} 45. Bb1 {[%emt 0:00:01]} Kg7 {[%emt 0:00:01]} 46. Bc2 {[%emt 0:00:01]} Kf6 $1 {[%emt 0:00:01]} 47. Bb1 {[%emt 0:00:01]} Kg7 $1 {[%emt 0:00:00]} 48. Bc2 {[%emt 0:00:55]} Kf6 49. Bb1 {[%emt 0:00:02] Weighted Error Value: White=0.13 (very precise) /Black=0.05 (flawless)} ({White should play} 49. Bd1 $14) 1/2-1/2

[Event "Superbet Blitz Poland 2022"]
[Site "Warsaw"]
[Date "2022.05.23"]
[Round "12.3"]
[White "Korobov, Anton"]
[Black "So, Wesley"]
[Result "0-1"]
[ECO "A16"]
[WhiteElo "2671"]
[BlackElo "2766"]
[Annotator "TA"]
[PlyCount "64"]
[EventDate "2022.05.22"]
[EventType "tourn"]
[EventCountry "POL"]
[SourceTitle "playchess.com"]
[Source "ChessBase"]
[SourceQuality "1"]
[TimeControl "300+2"]

{[%evp 15,64,0,0,-9,-14,-18,1,18,25,42,37,0,71,18,5,-5,-10,-31,-40,-183,-178,-187,-181,-171,-75,-144,-114,-157,-164,-211,-191,-223,-231,-220,-173,-194,-192,-415,-393,-363,-163,-982,-993,-944,-977,-822,-821,-12373,-29957,-5481,-5473]} 1. c4 {[%emt 0:00:02]} e5 {[%emt 0:00:01]} 2. Nc3 {[%emt 0:00:02]} Nf6 {[%emt 0:00:02]} 3. Nf3 {[%emt 0:00:02]} Nc6 {[%emt 0:00:01]} 4. a3 {[%emt 0:00:01]} g6 {[%emt 0:00:13]} 5. g3 {[%emt 0:00:02]} Bg7 {[%emt 0:00:03]} 6. Bg2 {[%emt 0:00:01]} O-O {[%emt 0:00:02]} 7. O-O {[%emt 0:00:03]} d5 {[%emt 0:00:07]} 8. cxd5 {[%emt 0:00:15]} Nxd5 {[%emt 0:00:01]} 9. Rb1 {[%emt 0:00:42] A16: English Opening: 1...Nf6 with ...d5.} Nxc3 {[%emt 0:00:16]} 10. bxc3 {[%emt 0:00:01] [#]} e4 $146 {[%emt 0:00:02]} ({Predecessor:} 10... Rb8 11. d3 b6 12. h4 Bb7 13. h5 h6 14. hxg6 fxg6 15. Qa4 Ne7 16. Nh4 Bxg2 17. Nxg2 a5 {0-1 (33) Nogueiras Santiago,J (2528)-SH Dos Hermanas 2003}) 11. Nd4 {[%emt 0:00:26] The position is equal.} Re8 {[%emt 0:00:28]} 12. Nxc6 {[%emt 0:00:16]} bxc6 {[%emt 0:00:00]} 13. Qa4 {[%emt 0:00:14]} Bf5 {[%emt 0:00:55]} (13... Bg4 $11) 14. Rb4 {[%emt 0:00:11]} (14. Qxc6 $16 Qd6 15. Qxd6 cxd6 16. a4) 14... c5 $11 {[%emt 0:00:07]} 15. Rc4 {[%emt 0:00:09]} Qe7 {[%emt 0:00:13]} 16. Qa5 {[%emt 0:00:42]} Bf8 {[%emt 0:00:06]} 17. a4 {[%emt 0:00:06]} (17. f3 $15) 17... Qe6 $19 {[%emt 0:00:10]} 18. Rxc5 {[%emt 0:00:04]} Bxc5 {[%emt 0:00:03]} 19. Qxc5 {[%emt 0:00:01] [#]} Qd6 {[%emt 0:00:17]} (19... Qb6 $1 $19 {[%cal Rb6c5] has better winning chances.} 20. d4 Qxc5 21. dxc5 Bd7) 20. Qe3 {[%emt 0:00:13]} (20. Qxd6 $142 cxd6 21. Ba3) 20... Rab8 {[%emt 0:00:16]} 21. c4 {[%emt 0:00:04]} Qb6 {[%emt 0:00:10] Black is more active.} 22. c5 {[%emt 0:00:09]} (22. Qf4 $142) 22... Qf6 {[%emt 0:00:14]} 23. Qf4 {[%emt 0:00:20]} Qe5 {[%emt 0:00:04]} 24. Qe3 {[%emt 0:00:09]} Rb1 {[%emt 0:00:04]} 25. h3 {[%emt 0:00:05]} h5 {[%emt 0:00:03] Inhibits g4.} 26. Ba3 $2 {[%emt 0:00:07]} (26. a5) 26... Rxf1+ {[%emt 0:00:02]} 27. Bxf1 {[%emt 0:00:02]} Qa1 {[%emt 0:00:02]} (27... Rb8 $142 28. Qc3 Qxc3 29. dxc3 Rb1) 28. Kg2 $2 {[%emt 0:00:06] [#]} (28. g4 Rb8 29. gxf5) 28... Bxh3+ $1 {[%emt 0:00:15][%mdl 512]} 29. Kxh3 {[%emt 0:00:01]} Qxf1+ {[%emt 0:00:01]} 30. Kh2 {[%emt 0:00:05]} Rb8 {[%emt 0:00:04] ...Rb1 is the strong threat.} 31. g4 {[%emt 0:00:35]} hxg4 {[%emt 0:00:03]} 32. Kg3 {[%emt 0:00:02] [#]} Rb3 $3 {[%emt 0:00:09][%mdl 512] Weighted Error Value: White=0.91/Black=0.23 (precise)} 0-1

[Event "Superbet Blitz Poland 2022"]
[Site "Warsaw"]
[Date "2022.05.23"]
[Round "12.4"]
[White "Duda, Jan-Krzysztof"]
[Black "Caruana, Fabiano"]
[Result "0-1"]
[ECO "A21"]
[WhiteElo "2750"]
[BlackElo "2786"]
[Annotator "TA"]
[PlyCount "118"]
[EventDate "2022.05.22"]
[EventType "tourn"]
[EventCountry "POL"]
[SourceTitle "playchess.com"]
[Source "ChessBase"]
[SourceQuality "1"]
[TimeControl "300+2"]

{[%evp 9,118,15,25,23,26,28,28,27,37,20,45,30,38,40,37,35,38,22,24,33,31,27,51,48,66,68,72,62,65,52,48,47,49,53,67,70,90,31,38,0,79,26,77,23,32,20,66,69,69,64,64,64,73,28,44,-395,-383,-358,-200,-200,-186,-186,-186,-186,-186,-186,-186,-186,-191,-235,-227,-238,-235,-226,-246,-246,-239,-265,-241,-265,-182,-192,-172,-250,-250,-245,-121,-663,-661,-610,-601,-756,-168,-1050,-1031,-977,-924,-897,-835,-29973,-29975,-29970,-1729,-29976,-29967,-29975,0,-29975,-29977,-29973,-29973]} 1. c4 {[%emt 0:00:01]} e5 {[%emt 0:00:01][%cal Be7e5,Be5e4][%mdl 32]} 2. Nc3 {[%emt 0:00:01]} Bb4 {[%emt 0:00:01]} 3. Nd5 {[%emt 0:00:02]} Be7 {[%emt 0:00:02]} 4. d4 {[%emt 0:00:05]} d6 {[%emt 0:00:01]} 5. Nf3 {[%emt 0:00:06]} e4 {[%emt 0:00:03]} 6. Nd2 {[%emt 0:00:02] A21: English Opening: 1...e5 2 Nc3.} f5 {[%emt 0:00:02]} 7. e3 {[%emt 0:00:10]} c6 $5 {[%emt 0:00:01][%mdl 4] Exploring less charted territory.} 8. Nxe7 {[%emt 0:00:03] White has an edge.} Nxe7 {[%emt 0:00:02] [#]} 9. f4 $146 {[%emt 0:00:18]} ({Predecessor:} 9. b3 O-O 10. Be2 Nd7 11. O-O Nf6 12. Ba3 Be6 13. Rc1 Qd7 14. d5 cxd5 15. cxd5 Nexd5 {0-1 (60) So,W (2778)-Caruana,F (2781) Saint Louis 2022}) 9... exf3 {[%emt 0:00:12]} 10. Nxf3 {[%emt 0:00:06]} O-O {[%emt 0:00:02]} 11. Bd3 {[%emt 0:00:01]} Nd7 {[%emt 0:00:05][%cal Bb8d7,Bd7f6,Bf6e4][%mdl 32]} 12. O-O {[%emt 0:00:04]} Nf6 {[%emt 0:00:02]} 13. Qc2 {[%emt 0:00:03]} Ne4 {[%emt 0:00:34]} 14. b3 {[%emt 0:00:09]} Ng6 {[%emt 0:00:01]} 15. Ba3 {[%emt 0:00:12]} Qe7 {[%emt 0:00:04]} 16. Nd2 {[%emt 0:00:23]} Nxd2 {[%emt 0:00:10]} (16... Qg5 17. Nxe4 fxe4 18. Bxe4 $16) 17. Qxd2 {[%emt 0:00:01]} Bd7 {[%emt 0:00:16]} 18. Rae1 {[%emt 0:00:02]} b6 {[%emt 0:01:04]} 19. Qf2 {[%emt 0:00:16]} c5 {[%emt 0:00:06]} 20. Qg3 {[%emt 0:00:09]} Rf7 {[%emt 0:00:16]} 21. Bb2 {[%emt 0:00:15]} Raf8 {[%emt 0:00:02]} 22. Be2 {[%emt 0:00:21]} Bc6 {[%emt 0:00:12]} 23. Bh5 {[%emt 0:00:09]} ({White should play} 23. d5 $16 Be8 24. Bh5) 23... Be4 $14 {[%emt 0:00:07]} 24. dxc5 {[%emt 0:00:40]} bxc5 {[%emt 0:00:17]} (24... dxc5 $11 25. Rd1 (25. Bxg6 hxg6 26. Rd1 Rd8 $11) 25... f4 26. exf4 Rxf4) 25. Rd1 {[%emt 0:00:08]} (25. Rf2 $16) 25... Rd8 {[%emt 0:00:01]} (25... f4 $11 26. exf4 Rxf4) 26. Bxg6 {[%emt 0:00:36]} ({White should try} 26. Rf2 $16) 26... hxg6 $11 {[%emt 0:00:01]} 27. Qxg6 {[%emt 0:00:02]} f4 {[%emt 0:01:03] Prevents Qg3.} (27... Bc2 $11 28. Rde1 d5) 28. Qg4 $14 {[%emt 0:00:02]} f3 {[%emt 0:00:01]} 29. gxf3 {[%emt 0:00:13]} Bf5 {[%emt 0:00:00][%cal Be4f5,Bf5d3,Bd3e2][%mdl 32]} 30. Qg3 {[%emt 0:00:08] [#] Strongly threatening e4.} Qxe3+ {[%emt 0:00:02]} 31. Kh1 {[%emt 0:00:00]} Bd3 {[%emt 0:00:19]} 32. Rg1 {[%emt 0:00:45][%mdl 8192]} (32. Bc1 $14 {keeps the upper hand.} Qe2 33. Rfe1 Qxf3+ 34. Qxf3 Rxf3 35. Bg5) 32... Be2 $19 {[%emt 0:00:04]} 33. Rdf1 {[%emt 0:00:13]} Rdd7 {[%emt 0:00:17]} ({Not} 33... Bxf3+ 34. Rxf3 Qxf3+ 35. Qxf3 Rxf3 36. Rxg7+ Kf8 37. Rg2 $17) (33... Bxf1 $142 34. Rxf1 Re8) 34. f4 {[%emt 0:00:04]} Qe4+ {[%emt 0:00:08]} 35. Qg2 {[%emt 0:00:04]} Qxg2+ {[%emt 0:00:03]} 36. Kxg2 {[%emt 0:00:01]} Bxf1+ {[%emt 0:00:01]} 37. Rxf1 {[%emt 0:00:01][%mdl 4096] Endgame KRR-KRB} d5 {[%emt 0:00:01]} 38. cxd5 {[%emt 0:00:01]} Rxd5 {[%emt 0:00:01]} 39. Be5 {[%emt 0:00:15]} Rd2+ {[%emt 0:00:03]} 40. Kg3 {[%emt 0:00:01]} Rxa2 {[%emt 0:00:03]} 41. Rc1 {[%emt 0:00:01]} Ra5 {[%emt 0:00:07]} 42. Kg4 {[%emt 0:00:02]} Rb7 {[%emt 0:00:02]} 43. Rc3 {[%emt 0:00:01]} Kf7 {[%emt 0:00:03]} 44. h4 {[%emt 0:00:01]} Rab5 {[%emt 0:00:01]} 45. h5 {[%emt 0:00:02]} a5 {[%emt 0:00:03][%cal Ba7a5,Ba5a4][%mdl 32]} 46. Kg5 {[%emt 0:00:02]} (46. Rc2 {was worth a try.}) 46... Rxb3 {[%emt 0:00:02]} 47. Rxc5 {[%emt 0:00:01] [#]} Ra7 {[%emt 0:00:02]} (47... R3b5 $1 $19 {[%cal Rb5c5] is more deadly.} 48. Rc6 R5b6) 48. f5 $2 {[%emt 0:00:09][%mdl 8192]} (48. Bd4 $17 Rd7 49. Be5) 48... a4 {[%emt 0:00:03]} 49. Rc8 {[%emt 0:00:01]} Rd3 {[%emt 0:00:10] Prevents Bd6.} 50. Rh8 {[%emt 0:00:04]} Rd5 $2 {[%emt 0:00:03]} (50... Ra5 51. Bc7 Rc5) 51. Ba1 {[%emt 0:00:03]} (51. Bc3) 51... Raa5 {[%emt 0:00:02]} 52. Kg4 {[%emt 0:00:03]} Rxf5 {[%emt 0:00:01] ...a3 is the strong threat.} 53. h6 {[%emt 0:00:01]} gxh6 {[%emt 0:00:02] ( -> ...Rf1)} 54. Rxh6 {[%emt 0:00:01]} Rf1 {[%emt 0:00:02]} 55. Rh7+ {[%emt 0:00:03]} Ke6 {[%emt 0:00:01]} (55... Kg6 $142 56. Rg7+ Kh6 57. Bd4 Rd5 58. Kh3 Rxd4 59. Rg3 Rdf4 60. Rg8 R4f3+ 61. Kh2 R3f2+ 62. Kh3 Rh1+ 63. Kg3 Rg1+ 64. Kxf2 Rxg8 65. Ke3 a3 66. Ke4 a2 67. Kd5 a1=Q 68. Ke4 Qd1 69. Ke3 Re8+ 70. Kf2 Qe2+ 71. Kg3 Re3+ 72. Kh4 Qh5#) 56. Bc3 {[%emt 0:00:02]} Rc5 {[%emt 0:00:02]} 57. Bh8 {[%emt 0:00:03]} Ra5 {[%emt 0:00:07]} 58. Bc3 $1 {[%emt 0:00:01]} Ra8 {[%emt 0:00:01]} 59. Rh6+ {[%emt 0:00:02]} Kd5 {[%emt 0:00:01] Weighted Error Value: White=0.76/Black=0.48} 0-1

[Event "Superbet Blitz Poland 2022"]
[Site "Warsaw"]
[Date "2022.05.23"]
[Round "12.5"]
[White "Wojtaszek, Radoslaw"]
[Black "Rapport, Richard"]
[Result "0-1"]
[ECO "A73"]
[WhiteElo "2696"]
[BlackElo "2776"]
[Annotator "TA"]
[PlyCount "136"]
[EventDate "2022.05.22"]
[EventType "tourn"]
[EventCountry "POL"]
[SourceTitle "playchess.com"]
[Source "ChessBase"]
[SourceQuality "1"]
[TimeControl "300+2"]

{[%evp 21,136,0,2,0,0,0,31,6,10,14,30,18,21,-27,-17,-7,0,0,0,-22,-36,-50,-54,-69,-72,-62,-55,-51,-48,-64,-51,-94,-3,-87,-91,-94,-92,-131,0,0,0,-9,-8,-29,-13,-8,0,-108,-108,-141,-147,-140,-175,-604,-427,-415,-407,-2155,-781,-747,-747,-703,-546,-2575,-2150,-4690,-4682,-2789,-914,-718,-164,-262,-281,-242,-238,-968,-553,-109,-102,-103,-39,-40,-41,-41,-41,-41,-33,-34,-39,-41,-39,-39,-39,-41,-39,-83,-83,-83,-83,-83,-83,-93,-83,-120,-83,-1263,-618,-627,-167,-29968,-4622,-29979,-29980,-29981,-29982,-29983,-29984]} 1. d4 {[%emt 0:00:01]} e6 {[%emt 0:00:01]} 2. c4 {[%emt 0:00:01]} c5 {[%emt 0:00:01]} 3. d5 {[%emt 0:00:02]} exd5 {[%emt 0:00:01]} 4. cxd5 {[%emt 0:00:00]} d6 {[%emt 0:00:01]} 5. Nc3 {[%emt 0:00:02]} g6 {[%emt 0:00:01]} 6. e4 {[%emt 0:00:01]} Bg7 {[%emt 0:00:01]} 7. Be2 {[%emt 0:00:04]} Nf6 {[%emt 0:00:12]} 8. Nf3 {[%emt 0:00:03][%cal Bg1f3,Bf3d2,Bd2c4][%mdl 32]} Bg4 {[%emt 0:00:05]} 9. Nd2 {[%emt 0:00:11]} Bxe2 {[%emt 0:00:02]} 10. Qxe2 {[%emt 0:00:02]} O-O {[%emt 0:00:03]} 11. O-O {[%emt 0:00:02]} Nbd7 {[%emt 0:00:13] has lost popularity (11...Re8).} 12. Nc4 {[%emt 0:00:02] A73: Modern Benoni: Classical: Unusual Black 9th moves.} Nb6 {[%emt 0:00:02]} 13. Ne3 {[%emt 0:00:04]} Re8 {[%emt 0:00:07] [#]} 14. Qc2 $146 {[%emt 0:00:05] White is slightly better.} ({Predecessor:} 14. f3 h5 15. Qf2 Nfd7 16. Kh1 Ne5 17. Rd1 c4 18. Qe2 Rc8 19. a4 a5 20. Nb5 {0-1 (42) Aura,K (1986)-Karvinen,K (1976) Helsinki 2013}) 14... c4 {[%emt 0:00:22]} 15. a4 {[%emt 0:00:07][%cal Ba2a4,Ba4a5][%mdl 32]} Rc8 {[%emt 0:00:24]} 16. a5 {[%emt 0:00:26]} Nbd7 {[%emt 0:00:01]} 17. Ra4 {[%emt 0:00:05]} (17. f3 $142) 17... Nc5 $11 {[%emt 0:00:09][%csl LRa4,LRe4]} 18. Rxc4 {[%emt 0:00:12] [#]} Ncxe4 $1 {[%emt 0:00:06]} 19. Nxe4 {[%emt 0:00:50]} Nxe4 {[%emt 0:00:03][%mdl 64] Pin} 20. Rxc8 {[%emt 0:00:16]} Qxc8 {[%emt 0:00:01]} 21. Qb3 {[%emt 0:00:36]} h5 {[%emt 0:00:24]} 22. h3 {[%emt 0:00:05]} Re7 {[%emt 0:00:15]} 23. Qd3 {[%emt 0:00:24]} Qc5 {[%emt 0:00:20]} 24. a6 {[%emt 0:00:45]} bxa6 {[%emt 0:00:08]} 25. Qxa6 {[%emt 0:00:03]} Rc7 {[%emt 0:00:39]} 26. Qd3 {[%emt 0:00:09]} f5 {[%emt 0:00:05]} (26... Qb4 $17) 27. b3 {[%emt 0:00:05]} (27. g4 $1 $11) 27... Qc3 $17 {[%emt 0:00:40] 0x0.001259254c29dp-1022s more active pieces.} 28. Qb5 {[%emt 0:00:11]} Kh7 {[%emt 0:00:15][%cal Oe4f2]} 29. Nc4 {[%emt 0:00:07] [#]} Bd4 {[%emt 0:01:01]} (29... Nxf2 $1 $17 {[%mdl 512]} 30. Bb2 (30. Kxf2 $2 Bd4+ 31. Ne3 f4 $19) (30. Qb8 $2 Re7 $19) 30... Nxh3+ $1 {[%mdl 512]} 31. Kh2 Be5+ 32. Nxe5 Qxb2 33. Nxg6 Qf6 34. Nf8+ (34. Qb8 Rf7 $17) 34... Qxf8) 30. Bb2 $11 {[%emt 0:00:17]} Qd3 {[%emt 0:00:01]} 31. Bxd4 {[%emt 0:00:05]} Qxd4 {[%emt 0:00:01]} 32. Qa5 {[%emt 0:00:09]} (32. Qb8 $5 {[%cal Rb8c7]} Rf7 33. Qe8 (33. Nxd6 $2 Qe5 $19) 33... Qxd5 34. f3 $11) 32... Rb7 {[%emt 0:00:02]} 33. Qd8 {[%emt 0:00:10]} Qxd5 {[%emt 0:00:01]} 34. Re1 {[%emt 0:00:03]} (34. Qa8 $11) 34... Qc5 {[%emt 0:00:04]} 35. Re3 {[%emt 0:00:05]} d5 {[%emt 0:00:01]} 36. Ne5 {[%emt 0:00:04]} d4 $36 {[%emt 0:00:06][%mdl 2048] Black is in control.} 37. Nd7 $2 {[%emt 0:00:07]} (37. Qe8 Qd6 38. Nc4) 37... Qd6 {[%emt 0:00:08]} ({Weaker is} 37... dxe3 38. Nxc5 Nxc5 39. fxe3 $16) 38. Nf8+ {[%emt 0:00:08]} Kg8 $1 {[%emt 0:00:02]} 39. Qe8 {[%emt 0:00:08]} (39. Qxd6 $142 Nxd6 40. Re6) 39... Qxf8 {[%emt 0:00:03]} (39... dxe3 $142 40. fxe3 Qxf8 41. Qxg6+ Rg7) 40. Qxg6+ $19 {[%emt 0:00:01]} Rg7 {[%emt 0:00:02]} 41. Qe6+ {[%emt 0:00:01]} Kh7 {[%emt 0:00:01]} 42. Rf3 {[%emt 0:00:04]} Ng5 {[%emt 0:00:03]} 43. Qxf5+ {[%emt 0:00:02]} Qxf5 {[%emt 0:00:01]} 44. Rxf5 {[%emt 0:00:01][%mdl 4096] Endgame [#] KRN-KR} d3 {[%emt 0:00:02]} (44... Rd7 $142 $1 45. Kf1 {[#]} (45. Rxg5 d3) 45... d3 $1) 45. Rd5 {[%emt 0:00:01]} d2 $2 {[%emt 0:00:01]} (45... Nxh3+ 46. Kf1 Nf4) 46. Kf1 {[%emt 0:00:00]} (46. Kh2 $142) 46... Ne4 {[%emt 0:00:02]} 47. f3 {[%emt 0:00:03]} Rf7 {[%emt 0:00:03] aiming for ...h4.} 48. Rd4 $2 {[%emt 0:00:04]} (48. h4) 48... Rf6 {[%emt 0:00:07]} 49. Ke2 {[%emt 0:00:03]} Nc5 {[%emt 0:00:03]} (49... Ng3+ {with more complications.} 50. Kf2 Nh1+ 51. Ke3 Re6+) 50. Rxd2 {[%emt 0:00:02]} Nxb3 {[%emt 0:00:05]} ({Black should play} 50... Rg6 $17 51. Kf2 Nxb3 52. Rd7+ Rg7) 51. Rd7+ $15 {[%emt 0:00:00]} Kh6 {[%emt 0:00:00] ...a5 is the strong threat.} 52. Rxa7 {[%emt 0:00:01]} Nd4+ {[%emt 0:00:00]} 53. Kf2 {[%emt 0:00:01]} h4 {[%emt 0:00:01]} 54. Ra4 {[%emt 0:00:02]} Nf5 {[%emt 0:00:01]} 55. Rf4 {[%emt 0:00:00]} Kg5 {[%emt 0:00:01]} 56. Rg4+ {[%emt 0:00:01]} Kh5 {[%emt 0:00:01]} 57. Rf4 {[%emt 0:00:01]} Rf7 {[%emt 0:00:02]} 58. Kg1 {[%emt 0:00:05]} Kg5 {[%emt 0:00:01]} 59. Rg4+ {[%emt 0:00:01]} Kf6 {[%emt 0:00:01]} 60. Re4 {[%emt 0:00:06]} Rb7 {[%emt 0:00:01]} 61. Re2 {[%emt 0:00:02]} Kg5 {[%emt 0:00:01]} 62. Kf2 {[%emt 0:00:01]} Rb4 {[%emt 0:00:02] Strongly threatening ...Kf4.} 63. Ra2 $2 {[%emt 0:00:04][%mdl 8192] Now White is beyond hope.} (63. Re4 $17 Rb2+ 64. Kg1) 63... Kf4 $19 {[%emt 0:00:01] Threatens to win with ...Ng3.} 64. Rd2 {[%emt 0:00:00]} Ne3 $2 {[%emt 0:00:06] Inhibits Rc2.} (64... Rc4 {( -> ...Ne3)} 65. Re2 Ng3) 65. Ra2 $2 {[%emt 0:00:01]} (65. Re2 $19 Rb2 66. Rxb2 Nd1+ 67. Ke2 Nxb2 68. Kd2) 65... Rc4 {[%emt 0:00:02]} 66. Rd2 {[%emt 0:00:06]} Rc2 {[%emt 0:00:03] Black mates.} 67. Rxc2 Nxc2 {[%emt 0:00:01]} 68. Kg1 {[%emt 0:00:03]} Kg3 {[%emt 0:00:00] Weighted Error Value: White=0.93/Black=0.64} 0-1